bitfinex/quotes_ETHUSD_20240718
["timestamp","ask_amount","ask_price","bid_price","bid_amount"]
[1721326286081,3.0,3405.4,3405.1,0.09827154]
[1721326287409,5.93652,3405.4,3405.1,0.09827154]
[1721326290341,2.93666,3405.3,3405.1,0.09827154]
[1721326290527,3.0,3405.4,3405.1,0.09827154]
[1721326292711,2.9366,3405.3,3405.1,0.09827154]
[1721326292907,2.93668,3405.2,3405.1,0.09827154]
[1721326293331,2.9368,3405.1,3404.5,5.21122]
[1721326293637,2.9368,3405.1,3404.6,0.09849584]
[1721326293838,2.9366,3405.3,3404.6,0.09849584]
[1721326294048,0.88734,3405.1,3404.6,0.09849584]
[1721326294247,2.93683,3405.1,3404.6,0.09849584]
[1721326294543,2.93695,3404.9,3404.6,0.09849584]
[1721326294914,5.87368,3405.1,3404.6,0.09849584]
[1721326295326,2.93686,3405.0,3404.6,0.09849584]
[1721326296419,5.87379,3405.0,3404.6,0.09849584]
[1721326296720,2.93694,3404.9,3404.6,0.09849584]
[1721326296926,2.93694,3404.9,3404.4,2.93737]
[1721326297248,2.93694,3404.9,3404.5,0.09528156]
[1721326298164,2.93706,3404.8,3404.5,0.09528156]
[1721326298623,2.93706,3404.8,3404.3,2.93744]
[1721326298816,2.93706,3404.8,3404.6,0.09517783]
[1721326299147,2.93688,3405.0,3404.7,0.09507267]
[1721326299333,5.8738,3405.0,3404.4,2.93737]
[1721326299536,5.8738,3405.0,3404.5,0.09521206]
[1721326300142,2.93695,3404.9,3404.5,0.09521206]
[1721326300643,2.93695,3404.9,3404.5,0.72166827]
[1721326300847,2.93684,3405.1,3404.6,2.3774]
[1721326301223,2.93686,3405.0,3404.7,0.09504502]
[1721326301445,2.93673,3405.2,3404.7,3.03215502]
[1721326301645,2.93673,3405.2,3404.7,3.63575614]
[1721326301815,2.93654,3405.4,3404.9,2.93693]
[1721326301816,2.93651,3405.4,3404.9,2.93693]
[1721326302011,5.93646,3405.5,3404.7,3.63567614]
[1721326302341,5.93646,3405.5,3404.8,2.93697]
[1721326302342,2.93651,3405.4,3404.8,2.93697]
[1721326302542,2.93651,3405.4,3404.9,0.09487232]
[1721326303368,2.93651,3405.4,3404.9,3.92677966]
[1721326303758,2.93651,3405.4,3405.0,2.3153]
[1721326304154,2.93651,3405.4,3405.1,0.09463507]
[1721326305255,3.0,3405.5,3405.1,0.09463507]
[1721326305449,3.0,3405.4,3405.1,0.09463507]
[1721326305649,3.0,3405.6,3405.1,0.09463507]
[1721326305963,2.93648,3405.5,3405.1,0.09463507]
[1721326306141,3.0,3405.4,3405.1,0.09463507]
[1721326306348,4.21822148,3405.4,3405.0,2.3153]
[1721326306667,3.0,3405.4,3405.1,0.09460457]
[1721326307166,5.93656,3405.4,3405.1,0.09460457]
[1721326307365,1.21822148,3405.3,3405.1,0.09460457]
[1721326307552,5.87336,3405.2,3405.1,0.09460457]
[1721326307761,2.93679,3405.1,3404.7,2.3652]
[1721326308266,2.93679,3405.1,3404.8,0.09477247]
[1721326308450,2.93688,3405.0,3404.8,0.09477247]
[1721326308649,5.8738,3405.0,3404.8,0.09477247]
[1721326308872,2.93688,3405.0,3404.4,5.59707]
[1721326309065,2.93688,3405.0,3404.4,6.450516]
[1721326309280,5.8738,3405.0,3404.5,0.09491631]
[1721326309494,1.21822148,3405.1,3404.5,0.09491631]
[1721326309656,7.40168843,3404.6,3404.5,0.09491631]
[1721326309850,2.93768,3404.1,3403.6,2.3652]
[1721326310049,4.15948832,3404.1,3403.6,2.3652]
[1721326310248,4.15948832,3404.1,3403.7,0.09547403]
[1721326310809,4.15948832,3404.1,3403.6,2.3652]
[1721326310954,4.15948832,3404.1,3403.2,2.4914097]
[1721326310955,1.22180832,3404.1,3403.2,2.4914097]
[1721326311280,2.93825,3403.4,3403.3,0.09575298]
[1721326311655,2.93825,3403.4,3403.2,9.7e-06]
[1721326311656,2.93832,3403.3,3403.2,9.7e-06]
[1721326312051,2.93832,3403.3,3403.2,0.09583243]
[1721326312248,2.93832,3403.3,3403.2,9.7e-06]
[1721326312451,2.93816,3403.5,3403.2,0.09583243]
[1721326312680,4.15980832,3403.7,3403.2,9.7e-06]
[1721326312881,2.93806,3403.6,3403.3,0.09575298]
[1721326313084,2.93806,3403.6,3403.2,9.7e-06]
[1721326313682,2.93815,3403.5,3403.2,9.7e-06]
[1721326313885,2.93798,3403.7,3403.2,9.7e-06]
[1721326314201,2.93798,3403.7,3403.3,0.09575298]
[1721326314563,2.9379,3403.8,3403.2,9.7e-06]
[1721326314770,2.93816,3403.5,3403.4,0.09568324]
[1721326314980,2.93816,3403.5,3403.3,0.09575298]
[1721326315277,2.93816,3403.5,3403.4,0.09568324]
[1721326315692,2.93816,3403.5,3403.2,9.7e-06]
[1721326316005,2.93816,3403.5,3403.3,0.09575298]
[1721326316505,2.93816,3403.5,3403.2,9.7e-06]
[1721326316665,2.93816,3403.5,3403.4,0.09568324]
[1721326316868,2.93816,3403.5,3403.3,0.09575298]
[1721326317069,2.93816,3403.5,3403.2,9.7e-06]
[1721326317297,2.93816,3403.5,3403.4,0.09568324]
[1721326317500,2.93816,3403.5,3403.3,0.09575298]
[1721326317670,2.93816,3403.5,3403.2,9.7e-06]
[1721326317871,2.93816,3403.5,3403.4,0.09568324]
[1721326318074,2.93816,3403.5,3403.3,0.09575298]
[1721326318374,2.93816,3403.5,3403.4,0.09568324]
[1721326318774,2.93825,3403.4,3403.2,9.7e-06]
[1721326320299,2.93806,3403.6,3403.2,9.7e-06]
[1721326320509,2.93792,3403.8,3403.2,9.7e-06]
[1721326320707,3.0,3404.1,3403.2,9.7e-06]
[1721326320708,2.93808,3403.6,3403.2,9.7e-06]
[1721326320906,2.93786,3403.9,3403.2,9.7e-06]
[1721326321096,2.93832,3403.3,3403.2,9.7e-06]
[1721326324113,5.87664,3403.3,3403.2,9.7e-06]
[1721326324279,2.93832,3403.3,3403.2,9.7e-06]
[1721326325477,5.87664,3403.3,3403.2,9.7e-06]
[1721326325687,14.12156,3403.3,3403.2,9.7e-06]
[1721326325921,12.595396,3403.3,3403.2,9.7e-06]
[1721326326290,15.533716,3403.3,3403.2,9.7e-06]
[1721326326796,12.595396,3403.3,3403.2,9.7e-06]
[1721326327003,15.533716,3403.3,3403.2,9.7e-06]
[1721326327999,12.595396,3403.3,3403.2,9.7e-06]
[1721326328202,10.288796,3403.3,3403.2,9.7e-06]
[1721326328411,5.93832,3403.3,3403.2,9.7e-06]
[1721326328815,8.87664,3403.3,3403.2,0.09292541]
[1721326329128,8.87664,3403.3,3403.2,9.7e-06]
[1721326334430,5.93832,3403.3,3403.2,9.7e-06]
[1721326334803,5.93832,3403.3,3403.2,0.09292541]
[1721326335003,5.93832,3403.3,3403.2,9.7e-06]
[1721326335250,5.93832,3403.3,3403.2,0.09292541]
[1721326335419,3.0,3403.3,3403.2,9.7e-06]
[1721326335613,3.0,3403.3,3403.2,0.09292541]
[1721326335854,3.0,3403.3,3403.2,9.7e-06]
[1721326336061,3.0,3403.3,3403.2,0.09292541]
[1721326336509,5.93832,3403.3,3403.2,0.09292541]
[1721326337539,5.93832,3403.3,3403.2,9.7e-06]
[1721326337756,5.93832,3403.3,3403.2,0.09294991]
[1721326338116,8.87664,3403.3,3403.2,0.09294991]
[1721326338312,9.764297,3403.3,3403.2,9.7e-06]
[1721326339220,15.170817,3403.3,3403.2,0.09294991]
[1721326339420,17.203817,3403.3,3403.2,9.7e-06]
[1721326340963,20.142137,3403.3,3403.2,9.7e-06]
[1721326341168,20.047537,3403.3,3403.2,9.7e-06]
[1721326341383,20.48126276,3403.3,3403.2,9.7e-06]
[1721326341676,20.78822117,3403.3,3403.2,9.7e-06]
[1721326343368,23.72654117,3403.3,3403.2,9.7e-06]
[1721326343523,24.27654117,3403.3,3403.2,9.7e-06]
[1721326343725,25.49834949,3403.3,3403.2,9.7e-06]
[1721326343956,22.24354117,3403.3,3403.2,9.7e-06]
[1721326344765,23.46534949,3403.3,3403.2,9.7e-06]
[1721326344987,23.46534949,3403.3,3402.3,0.005]
[1721326344988,2.4491,3402.7,3402.3,9.7e-06]
[1721326345265,19.78691349,3403.3,3402.3,9.7e-06]
[1721326345266,16.0592,3402.4,3402.3,9.7e-06]
[1721326345435,19.0592,3402.4,3402.3,9.7e-06]
[1721326345779,19.49292576,3402.4,3402.3,9.7e-06]
[1721326345975,19.49292576,3402.4,3401.1,0.0535958]
[1721326345976,5.88026,3401.2,3401.1,0.0535958]
[1721326346326,8.82039,3401.2,3401.1,0.0535958]
[1721326346525,11.82039,3401.2,3401.1,0.0535958]
[1721326346969,2.94104,3400.2,3399.8,0.1473997]
[1721326347138,2.94114,3400.1,3399.8,0.1473997]
[1721326347344,2.94114,3400.1,3399.9,0.08544225]
[1721326347648,2.94114,3400.1,3399.8,0.1473997]
[1721326347649,2.94114,3400.1,3400.0,0.08544366]
[1721326347963,2.94114,3400.1,3399.8,0.1473997]
[1721326347964,2.94126,3399.9,3399.8,0.1473997]
[1721326348169,5.88252,3399.9,3399.8,0.1473997]
[1721326348369,8.82378,3399.9,3399.8,0.1473997]
[1721326348581,11.82378,3399.9,3399.8,0.1473997]
[1721326348880,8.88252,3399.9,3399.8,0.1473997]
[1721326349223,9.974072,3399.9,3399.8,0.1473997]
[1721326350332,12.915332,3399.9,3399.8,0.1473997]
[1721326350865,9.974072,3399.9,3399.8,0.1473997]
[1721326351162,12.915332,3399.9,3399.8,0.1473997]
[1721326351559,9.974072,3399.9,3399.8,0.1473997]
[1721326351723,12.915332,3399.9,3399.8,0.1473997]
[1721326352190,9.974072,3399.9,3399.8,0.1473997]
[1721326354086,12.915332,3399.9,3399.8,0.1473997]
[1721326354617,18.233092,3399.9,3399.8,0.1473997]
[1721326354770,18.54026476,3399.9,3399.8,0.1473997]
[1721326355188,18.54026476,3399.9,3399.8,9.7e-06]
[1721326355393,2.94242,3398.6,3397.9,5.2839]
[1721326355571,2.94242,3398.6,3398.0,0.852154]
[1721326355572,2.94247,3398.6,3398.0,0.852154]
[1721326355803,2.94263,3398.4,3398.1,0.07975917]
[1721326356116,2.94267,3398.3,3398.1,0.07975917]
[1721326356286,2.94267,3398.3,3397.9,2.341]
[1721326356491,2.94205,3399.0,3398.2,0.07968921]
[1721326356800,12.533,3399.2,3398.0,2.94285]
[1721326357003,2.94236,3398.7,3398.1,0.822692]
[1721326357211,2.9424,3398.6,3398.1,0.90245117]
[1721326357428,2.033,3398.8,3398.1,0.07975917]
[1721326357711,2.033,3398.8,3397.9,2.341]
[1721326357712,2.94239,3398.6,3397.9,2.341]
[1721326358013,2.033,3398.8,3397.9,2.341]
[1721326358225,2.9427,3398.3,3398.0,0.07982913]
[1721326358587,5.033,3398.8,3397.6,2.94324]
[1721326358588,2.9426,3398.4,3397.6,2.94324]
[1721326358800,2.9426,3398.4,3397.7,0.08003905]
[1721326359122,2.94273,3398.2,3397.7,0.08003905]
[1721326359319,2.9426,3398.4,3397.7,0.08003905]
[1721326359320,2.94308,3397.8,3397.7,0.08003905]
[1721326359539,5.88616,3397.8,3397.7,0.08003905]
[1721326359756,5.88616,3397.8,3396.4,0.1473997]
[1721326359757,2.94348,3397.4,3396.5,2.94419]
[1721326360039,2.94368,3397.2,3396.6,3.02491904]
[1721326360236,3.0,3397.3,3396.8,2.94392]
[1721326360445,2.94325,3397.6,3396.9,2.9438]
[1721326360639,2.94325,3397.6,3396.9,3.0245031]
[1721326361009,10.44311,3397.8,3397.0,2.94377]
[1721326361348,5.94317,3397.7,3397.1,2.76083471]
[1721326361561,3.0,3397.7,3397.2,2.94359]
[1721326361711,3.0,3397.7,3397.3,2.94344]
[1721326362066,3.0,3398.0,3397.4,2.9434]
[1721326362267,7.5,3398.4,3397.5,2.94333]
[1721326362416,2.94249,3398.5,3397.8,2.94306]
[1721326362760,2.94262,3398.4,3397.8,2.94306]
[1721326362973,2.94262,3398.4,3397.6,3.24559531]
[1721326362974,2.9427,3398.3,3397.9,0.07998293]
[1721326363247,7.5,3398.8,3397.2,2.94356]
[1721326363432,2.94324,3397.7,3397.1,2.4525]
[1721326363764,2.94315,3397.8,3396.7,2.94403]
[1721326363765,2.94333,3397.6,3396.7,2.94403]
[1721326363914,2.94333,3397.6,3397.0,2.94376]
[1721326364334,2.94335,3397.5,3396.8,2.94394]
[1721326364524,2.94344,3397.4,3396.8,2.94394]
[1721326364719,2.9436,3397.2,3396.6,5.24571]
[1721326364924,2.94369,3397.1,3396.6,5.24571]
[1721326365123,2.94369,3397.1,3396.4,3.0916497]
[1721326366441,2.94377,3397.0,3396.4,3.0916497]
[1721326367522,2.9442,3396.5,3396.4,0.1473997]
[1721326367759,8.63712,3396.5,3396.4,0.1473997]
[1721326368026,11.63712,3396.5,3396.4,0.1473997]
[1721326368266,14.58132,3396.5,3396.4,0.1473997]
[1721326369274,14.58132,3396.5,3394.3,2.94607]
[1721326369275,14.58132,3396.5,3393.3,7.81842677]
[1721326369276,2.3034,3396.4,3393.3,7.81842677]
[1721326369424,2.72,3395.3,3393.0,2.9413997]
[1721326369726,2.94569,3394.8,3393.9,2.94644]
[1721326369929,2.94595,3394.5,3393.8,2.94648]
[1721326370223,2.94537,3395.2,3394.3,0.05955511]
[1721326370224,7.5,3395.0,3394.3,0.05955511]
[1721326370549,7.5,3395.0,3394.6,2.94582]
[1721326370762,7.098662,3396.3,3394.3,0.05955511]
[1721326370763,7.5,3395.9,3394.7,0.294582]
[1721326371093,2.94448,3396.2,3395.3,2.94523]
[1721326371094,2.94465,3396.0,3395.3,2.94523]
[1721326371295,2.94465,3396.0,3394.8,0.05919981]
[1721326371296,2.94469,3396.0,3394.8,0.05919981]
[1721326371576,2.94523,3395.4,3394.7,2.94569]
[1721326371860,2.9453,3395.3,3394.7,2.94575]
[1721326372025,2.9453,3395.3,3394.8,0.05919981]
[1721326372226,2.94447,3396.2,3394.8,0.05919981]
[1721326372425,11.654202,3396.3,3394.8,0.05919981]
[1721326372426,2.9453,3395.3,3394.8,0.05919981]
[1721326372680,2.91736562,3396.1,3394.5,2.3952]
[1721326372958,2.94507,3395.5,3394.9,0.05912972]
[1721326373165,2.94473,3395.9,3395.1,2.94536]
[1721326373360,5.94481,3395.8,3395.1,2.94536]
[1721326373556,5.05159976,3396.0,3394.9,2.94559]
[1721326373557,3.0,3395.7,3395.2,0.05891946]
[1721326373757,2.94472,3395.9,3395.2,0.05891946]
[1721326373919,2.94499,3395.6,3394.9,2.94559]
[1721326374123,3.0,3395.8,3394.8,2.94567]
[1721326374124,5.94507,3395.5,3394.8,2.94567]
[1721326374322,5.94507,3395.5,3395.0,0.05905963]
[1721326374529,5.94507,3395.5,3394.9,0.05912972]
[1721326374749,3.0,3395.5,3395.1,0.05898954]
[1721326374940,2.05159976,3396.0,3395.1,0.05898954]
[1721326374941,2.94516,3395.4,3395.1,0.05898954]
[1721326375153,2.94516,3395.4,3394.8,2.94564]
[1721326375337,2.94516,3395.4,3394.2,0.0535958]
[1721326375338,0.889015,3395.4,3394.2,0.0535958]
[1721326375550,2.94562,3394.9,3394.2,0.0535958]
[1721326375751,2.94585,3394.6,3394.2,0.0535958]
[1721326375956,2.94579,3394.7,3394.3,0.05359324]
[1721326376352,3.0,3395.1,3394.2,0.0535958]
[1721326376353,2.94568,3394.8,3394.2,0.0535958]
[1721326376565,2.94568,3394.8,3394.4,0.05352313]
[1721326376747,2.94568,3394.8,3394.3,0.05359324]
[1721326376930,3.0,3395.1,3394.5,0.05345301]
[1721326377134,3.0,3395.1,3394.2,0.0535958]
[1721326377135,2.9456,3394.9,3394.4,0.05174407]
[1721326377330,3.0,3395.2,3394.2,0.0535958]
[1721326377331,2.94558,3395.0,3394.6,0.04986926]
[1721326377537,2.94558,3395.0,3394.2,0.0535958]
[1721326377538,2.94558,3395.0,3394.5,0.04993937]
[1721326377777,2.94576,3394.7,3394.2,0.0535958]
[1721326378137,2.94571,3394.8,3394.3,0.05007959]
[1721326378480,2.94592,3394.6,3394.2,0.0535958]
[1721326378764,2.94611,3394.3,3394.2,0.0535958]
[1721326379171,2.94594,3394.5,3394.2,0.0535958]
[1721326379738,2.94549,3395.1,3394.2,2.9997858]
[1721326380056,2.9456,3394.9,3394.3,2.94609]
[1721326380372,3.0,3395.0,3394.5,2.94586]
[1721326380672,3.0,3395.0,3394.4,2.94602]
[1721326380871,3.0,3395.0,3394.5,2.94593]
[1721326381050,2.94534,3395.2,3394.5,2.94586]
[1721326381245,3.0,3395.1,3394.5,2.94586]
[1721326381435,3.0,3395.1,3394.6,2.94584]
[1721326381638,7.5,3395.3,3394.7,2.94571]
[1721326381841,7.5,3395.8,3395.0,2.94545]
[1721326382048,2.94504,3395.6,3394.8,2.94562]
[1721326382343,2.94508,3395.5,3394.9,2.94558]
[1721326382769,10.44452,3396.2,3394.8,2.94564]
[1721326382960,2.9446,3396.1,3395.4,2.94512]
[1721326383254,10.44452,3396.2,3395.6,2.94498]
[1721326383255,7.5,3396.2,3395.6,2.94498]
[1721326383454,10.44453,3396.2,3395.4,2.94509]
[1721326383782,7.5,3396.2,3395.6,2.94498]
[1721326383967,2.94415,3396.6,3395.7,2.94486]
[1721326384275,7.5,3396.8,3396.2,2.94446]
[1721326384276,10.44395,3396.8,3396.2,2.94446]
[1721326384641,7.5,3396.8,3396.4,2.94429]
[1721326384875,2.9438,3397.0,3396.4,2.94429]
[1721326385379,10.44363,3397.2,3396.5,2.9442]
[1721326385556,2.94372,3397.1,3396.5,2.9442]
[1721326385748,2.94403,3396.7,3396.6,0.04000109]
[1721326386083,2.94431,3396.4,3395.7,2.94489]
[1721326386286,2.9447,3396.0,3395.3,2.94519]
[1721326386457,2.9447,3396.0,3395.2,0.2945]
[1721326386458,2.94478,3395.9,3395.8,0.0404689]
[1721326386658,2.94478,3395.9,3395.2,2.94533]
[1721326386861,2.94469,3396.0,3395.3,2.94524]
[1721326387045,2.94451,3396.2,3395.3,2.94524]
[1721326387241,3.0,3396.1,3395.5,2.94504]
[1721326387459,2.94453,3396.2,3395.4,2.9451]
[1721326387686,3.0,3396.1,3395.7,2.94489]
[1721326387947,3.0,3396.4,3395.5,2.945]
[1721326388191,2.9443,3396.4,3395.5,2.945]
[1721326388381,2.94447,3396.2,3395.3,3.239704]
[1721326388584,3.29443,3396.3,3395.5,2.94506]
[1721326388748,6.23882,3396.3,3395.6,2.94493]
[1721326388950,3.0,3396.3,3395.3,0.294524]
[1721326389163,10.44397,3396.8,3394.9,5.8551335]
[1721326389164,2.9442,3396.5,3395.8,2.94477]
[1721326389360,2.94452,3396.2,3395.6,2.94498]
[1721326389892,2.9443,3396.4,3395.8,2.94481]
[1721326390064,5.94438,3396.3,3395.7,2.94489]
[1721326390270,5.94439,3396.3,3395.0,0.2945]
[1721326390471,5.94439,3396.3,3395.2,2.9453]
[1721326390668,2.9446,3396.1,3395.5,2.94506]
[1721326390870,5.94439,3396.3,3395.6,2.94498]
[1721326390871,2.94447,3396.2,3395.6,2.94498]
[1721326391070,2.94447,3396.2,3395.6,2.98553255]
[1721326391282,3.0,3396.3,3395.7,2.94488]
[1721326391480,2.94443,3396.3,3395.7,2.98536045]
[1721326391683,2.94443,3396.3,3395.7,0.04048045]
[1721326391684,0.888867,3396.3,3395.7,0.04048045]
[1721326391961,2.9446,3396.1,3395.7,0.04048045]
[1721326392172,2.9446,3396.1,3395.5,2.94505]
[1721326392376,2.9446,3396.1,3395.8,0.04036414]
[1721326392573,2.9444,3396.3,3395.5,2.94505]
[1721326392866,2.94457,3396.1,3395.5,2.94505]
[1721326393060,2.94457,3396.1,3395.6,0.04047093]
[1721326393862,2.94457,3396.1,3395.4,2.94515]
[1721326394066,2.94457,3396.1,3395.7,0.04037908]
[1721326394380,2.94424,3396.5,3395.8,2.94476]
[1721326394699,3.0,3396.4,3395.8,2.98503569]
[1721326395061,1.638819,3396.5,3395.8,2.98503569]
[1721326395300,3.0,3396.7,3395.8,2.98503569]
[1721326395487,5.94411,3396.7,3396.0,2.94458]
[1721326395689,3.0,3396.7,3396.2,2.94444]
[1721326396176,3.0,3396.7,3396.3,2.98429479]
[1721326396494,2.94426,3396.5,3395.9,2.3875]
[1721326397050,0.594426,3396.4,3396.0,0.04008391]
[1721326397187,2.94448,3396.2,3396.0,0.04008391]
[1721326397634,2.94448,3396.2,3395.6,2.94491]
[1721326397924,2.94455,3396.1,3395.6,2.94491]
[1721326398248,2.94469,3396.0,3395.7,0.04025667]
[1721326398430,2.94464,3396.0,3395.7,0.04025667]
[1721326398727,2.94464,3396.0,3395.8,0.04018661]
[1721326398935,2.94464,3396.0,3395.4,2.94509]
[1721326399105,2.94464,3396.0,3395.9,0.0400771]
[1721326399293,2.94464,3396.0,3395.5,2.94506]
[1721326399495,2.94452,3396.2,3395.9,0.0400771]
[1721326399825,2.94466,3396.0,3395.3,8.27791]
[1721326399987,2.94466,3396.0,3395.4,2.94515]
[1721326400622,0.594426,3396.4,3395.5,2.94503]
[1721326400623,2.94454,3396.2,3395.5,2.94503]
[1721326400998,2.94487,3395.8,3395.3,2.3875]
[1721326401440,2.94499,3395.6,3395.0,3.23997]
[1721326401959,0.6483386,3396.2,3394.3,2.5981]
[1721326402097,2.94559,3394.9,3394.3,5.2497]
[1721326402302,2.94546,3395.1,3394.4,2.94594]
[1721326402612,2.94555,3395.0,3394.4,2.94594]
[1721326402793,2.9456,3394.9,3394.3,2.3036]
[1721326402993,2.9456,3394.9,3394.3,5.2497]
[1721326403437,2.94574,3394.8,3394.2,0.0535958]
[1721326403729,2.94586,3394.6,3394.2,0.0535958]
[1721326403930,2.94611,3394.4,3394.2,0.0535958]
[1721326404307,2.94591,3394.6,3394.2,0.0535958]
[1721326404527,2.94573,3394.8,3394.2,0.0535958]
[1721326404859,2.94577,3394.7,3394.2,0.0535958]
[1721326405364,2.94562,3394.9,3394.2,0.0535958]
[1721326405510,2.94545,3395.1,3394.3,2.94609]
[1721326405716,3.834301,3395.3,3394.5,2.94586]
[1721326405717,2.94539,3395.2,3394.5,2.94586]
[1721326405955,3.0,3395.2,3394.6,2.94579]
[1721326406107,2.94535,3395.2,3394.6,2.98387663]
[1721326406314,3.0,3395.1,3394.7,2.9457]
[1721326406512,5.94521,3395.4,3394.8,2.94568]
[1721326406912,3.0,3395.4,3394.9,0.03787633]
[1721326407159,2.94524,3395.3,3394.9,0.03787633]
[1721326407315,3.0,3395.2,3394.7,2.94571]
[1721326407515,3.0,3395.2,3395.0,0.03780624]
[1721326407815,3.0,3395.2,3394.7,2.94571]
[1721326407816,2.94495,3395.7,3395.1,2.98314615]
[1721326408129,2.945,3395.6,3395.1,0.03773615]
[1721326408559,2.94507,3395.5,3394.9,2.94551]
[1721326408850,2.94495,3395.7,3395.2,0.037713]
[1721326408851,2.94494,3395.7,3395.2,0.037713]
[1721326409050,3.0,3395.6,3395.1,2.94538]
[1721326409263,2.9447,3396.0,3395.3,2.98285292]
[1721326409550,2.9447,3396.0,3395.1,0.294538]
[1721326409551,2.3633,3396.7,3395.2,0.03770211]
[1721326409761,2.94442,3396.3,3395.5,2.94501]
[1721326409962,2.94442,3396.3,3395.5,2.94505]
[1721326409963,2.94461,3396.1,3395.5,2.94505]
[1721326410258,2.94442,3396.3,3395.6,2.98239183]
[1721326410627,2.94417,3396.6,3395.9,2.94471]
[1721326410831,2.94372,3397.1,3395.8,2.2695]
[1721326411013,2.94384,3397.0,3396.2,2.94439]
[1721326411338,2.94389,3396.9,3396.3,2.9812372]
[1721326411541,2.94404,3396.7,3396.3,0.0369172]
[1721326411855,2.94404,3396.7,3396.1,2.9445]
[1721326412071,2.94371,3397.1,3396.4,2.98107717]
[1721326412252,3.238081,3397.1,3396.3,2.9443]
[1721326412450,2.9436,3397.2,3396.5,2.94415]
[1721326412758,2.94369,3397.1,3396.6,0.03670711]
[1721326413071,2.94351,3397.3,3396.5,2.94415]
[1721326413226,2.94351,3397.3,3396.7,2.98064126]
[1721326414671,2.94386,3396.9,3396.7,0.03661126]
[1721326415031,2.94386,3396.9,3396.1,2.94447]
[1721326415565,2.94377,3397.0,3396.2,2.98128403]
[1721326415812,2.94409,3396.7,3396.2,0.03682403]
[1721326416062,2.94402,3396.8,3396.2,0.03682403]
[1721326416063,2.9443,3396.4,3396.2,0.03682403]
[1721326416222,2.9443,3396.4,3395.8,2.2695]
[1721326416223,2.94438,3396.3,3395.8,2.2695]
[1721326416426,2.9446,3396.1,3395.4,2.94507]
[1721326416652,2.94441,3396.3,3395.4,2.94507]
[1721326416922,2.94441,3396.3,3395.4,3.5247208]
[1721326417121,2.94469,3396.0,3395.4,3.5247208]
[1721326417336,2.94449,3396.2,3395.6,2.94498]
[1721326417929,2.94449,3396.2,3395.4,3.5246908]
[1721326418134,7.5,3396.6,3395.2,0.2945]
[1721326418135,2.94486,3395.8,3395.2,0.2945]
[1721326418374,2.94467,3396.0,3395.2,0.2945]
[1721326418570,2.94473,3395.9,3395.2,3.23976]
[1721326418861,7.5,3396.6,3395.2,0.2945]
[1721326418862,2.9446,3396.1,3395.2,0.2945]
[1721326419067,2.94449,3396.2,3395.5,2.94506]
[1721326419660,2.94449,3396.2,3395.5,3.53409]
[1721326419863,2.94449,3396.2,3395.5,2.94506]
[1721326420061,2.94457,3396.1,3395.5,2.94506]
[1721326420843,2.94457,3396.1,3395.6,0.03718721]
[1721326422251,2.94457,3396.1,3395.6,2.98215721]
[1721326422586,2.9449,3395.7,3395.6,0.03718721]
[1721326422782,2.94473,3395.9,3395.6,0.03718721]
[1721326422993,2.94482,3395.8,3395.2,0.2945]
[1721326423193,2.94482,3395.8,3395.7,0.03715997]
[1721326423429,2.94482,3395.8,3394.9,2.94555]
[1721326423430,0.588955,3395.8,3394.9,2.94555]
[1721326423603,8.83443,3395.8,3395.7,0.03715997]
[1721326423784,2.94544,3395.1,3394.5,2.94593]
[1721326424098,2.94544,3395.1,3394.3,2.94611]
[1721326424099,2.94551,3395.0,3394.3,2.94604]
[1721326424267,2.94551,3395.0,3394.6,0.03793223]
[1721326424465,13.22,3395.8,3394.2,0.0535958]
[1721326424681,2.94569,3394.8,3394.2,0.0535958]
[1721326425000,2.94586,3394.6,3394.2,0.0535958]
[1721326425294,2.94591,3394.6,3394.3,0.03707001]
[1721326425588,5.89184,3394.6,3394.3,0.03707001]
[1721326425791,5.89184,3394.6,3394.2,0.0535958]
[1721326425792,2.94591,3394.6,3394.2,0.0535958]
[1721326425945,2.94591,3394.6,3394.4,0.03699989]
[1721326426296,2.94591,3394.6,3394.2,0.0535958]
[1721326426297,2.94594,3394.5,3394.2,0.0535958]
[1721326426996,2.94611,3394.3,3394.2,0.0535958]
[1721326427445,2.94606,3394.4,3394.2,0.0535958]
[1721326428275,2.94611,3394.3,3394.2,0.0535958]
[1721326428926,2.94566,3394.9,3394.2,0.0535958]
[1721326429132,2.94579,3394.7,3394.2,0.0535958]
[1721326430579,2.9458,3394.7,3394.2,0.0535958]
[1721326432234,2.94582,3394.7,3394.2,0.0535958]
[1721326432374,2.94567,3394.9,3394.2,0.0535958]
[1721326432575,2.94567,3394.9,3394.3,0.03586409]
[1721326432576,3.0,3394.8,3394.3,0.03586409]
[1721326432981,5.94568,3394.8,3394.2,0.0535958]
[1721326433277,3.0,3394.8,3394.3,2.98196409]
[1721326433526,5.94559,3394.9,3394.3,2.98196409]
[1721326434108,3.0,3394.9,3394.5,2.94592]
[1721326434295,7.5,3395.3,3394.7,2.94568]
[1721326434870,7.5,3395.3,3394.9,2.94553]
[1721326435031,2.94481,3395.8,3394.9,2.94553]
[1721326435232,2.94492,3395.7,3395.0,0.03536588]
[1721326435529,2.94507,3395.5,3395.1,0.03528627]
[1721326435940,2.94507,3395.5,3394.9,2.94553]
[1721326436119,3.0,3395.6,3394.9,2.94553]
[1721326436439,3.0,3395.6,3395.0,0.03535568]
[1721326436639,2.94509,3395.5,3395.0,0.03535568]
[1721326436952,3.0,3395.6,3395.0,2.98084568]
[1721326437106,3.0,3395.6,3395.1,2.94541]
[1721326437313,3.0,3395.8,3395.0,0.03535568]
[1721326437566,4.05,3395.8,3395.2,0.03520599]
[1721326437847,6.99487,3395.8,3395.1,2.94533]
[1721326438460,4.05,3395.8,3395.2,2.94531]
[1721326438672,6.99488,3395.8,3395.0,2.94543]
[1721326438808,2.9449,3395.7,3395.3,0.03513591]
[1721326439013,6.99488,3395.8,3395.0,2.94543]
[1721326439014,5.94499,3395.6,3395.0,2.94543]
[1721326439451,5.94499,3395.6,3395.1,0.03527607]